bitfinex-derivatives/quotes_BTCF0:USTF0_20241109
["timestamp","ask_amount","ask_price","bid_price","bid_amount"]
[1731192180557,0.3608,76549.0,76540.0,0.05217936]
[1731192180754,0.3608,76549.0,76542.0,0.065294]
[1731192180959,0.3608,76549.0,76546.0,0.06529]
[1731192183666,0.3608,76549.0,76541.0,0.05217936]
[1731192183965,0.0061,76549.0,76547.0,0.065289]
[1731192184168,0.3669,76549.0,76547.0,0.065289]
[1731192184363,0.02522639,76548.0,76547.0,0.065289]
[1731192184962,0.3669,76549.0,76547.0,0.065289]
[1731192185665,0.02522639,76548.0,76547.0,0.065289]
[1731192186364,0.3669,76549.0,76547.0,0.065289]
[1731192186665,0.02522639,76548.0,76547.0,0.065289]
[1731192187260,0.02522609,76548.0,76547.0,0.065289]
[1731192188470,0.02522609,76548.0,76547.0,0.10628894]
[1731192189767,0.02522609,76548.0,76547.0,0.065289]
[1731192190262,0.3669,76549.0,76547.0,0.065289]
[1731192197476,0.02522915,76548.0,76547.0,0.065289]
[1731192197972,0.3669,76549.0,76547.0,0.065289]
[1731192199570,0.0061,76549.0,76547.0,0.065289]
[1731192199768,0.3669,76549.0,76547.0,0.065289]
[1731192201377,0.0061,76549.0,76547.0,0.065289]
[1731192201673,0.3669,76549.0,76547.0,0.065289]
[1731192203281,0.0061,76549.0,76547.0,0.065289]
[1731192203469,0.3669,76549.0,76547.0,0.065289]
[1731192206380,0.02522632,76548.0,76547.0,0.065289]
[1731192213383,0.3669,76549.0,76547.0,0.065289]
[1731192213684,0.02522586,76548.0,76547.0,0.065289]
[1731192214391,0.3669,76549.0,76547.0,0.065289]
[1731192218379,0.3608,76548.0,76547.0,0.065289]
[1731192220478,0.3669,76549.0,76548.0,0.065289]
[1731192221487,0.39212593,76549.0,76548.0,0.065289]
[1731192223991,0.3669,76549.0,76548.0,0.065289]
[1731192224583,0.39212593,76549.0,76548.0,0.065289]
[1731192224990,0.3669,76549.0,76548.0,0.065289]
[1731192226482,0.0061,76549.0,76548.0,0.065289]
[1731192230680,0.0061,76549.0,76548.0,0.553649]
[1731192230880,0.00195989,76565.0,76564.0,0.065275]
[1731192234090,0.00195989,76565.0,76564.0,0.457115]
[1731192234294,0.00195989,76565.0,76564.0,0.065275]
[1731192234503,0.065264,76577.0,76570.0,0.06527]
[1731192234687,0.07273526,76571.0,76570.0,0.06527]
[1731192234995,0.065265,76576.0,76570.0,0.06527]
[1731192235197,0.07273526,76571.0,76570.0,0.06527]
[1731192235387,0.065265,76576.0,76566.0,0.09644]
[1731192235702,0.43353526,76572.0,76571.0,0.065269]
[1731192235989,0.3608,76572.0,76571.0,0.065269]
[1731192236394,0.065265,76576.0,76573.0,0.065267]
[1731192236898,0.07273526,76574.0,76573.0,0.065267]
[1731192237191,0.19677226,76574.0,76573.0,0.065267]
[1731192237496,0.19677226,76575.0,76573.0,0.065267]
[1731192237797,0.07273526,76574.0,76573.0,0.065267]
[1731192238194,0.26901443,76574.0,76573.0,0.065267]
[1731192239497,0.3608,76577.0,76576.0,0.065265]
[1731192239801,0.43353526,76577.0,76576.0,0.065265]
[1731192243207,0.09644,76588.0,76576.0,0.065265]
[1731192243208,0.00195937,76591.0,76583.0,0.065259]
[1731192243513,0.07273526,76586.0,76583.0,0.065259]
[1731192244207,0.07273526,76586.0,76585.0,0.065257]
[1731192245914,0.3608,76587.0,76585.0,0.065257]
[1731192247324,0.43353526,76587.0,76585.0,0.065257]
[1731192247616,0.3608,76587.0,76585.0,0.065257]
[1731192247817,0.07273526,76586.0,76585.0,0.065257]
[1731192248724,0.3608,76587.0,76585.0,0.065257]
[1731192248912,0.07273526,76586.0,76585.0,0.065257]
[1731192250110,0.3608,76587.0,76585.0,0.065257]
[1731192250709,0.3608,76587.0,76585.0,0.10722365]
[1731192252126,0.07273526,76586.0,76585.0,0.10722365]
[1731192264325,0.3608,76587.0,76585.0,0.10722365]
[1731192264531,0.07273526,76586.0,76585.0,0.10722365]
[1731192266133,0.43353526,76586.0,76585.0,0.10722365]
[1731192268032,0.3608,76586.0,76585.0,0.10722365]
[1731192274231,0.38601374,76586.0,76585.0,0.10722365]
[1731192274430,0.3608,76586.0,76585.0,0.10722365]
[1731192278938,0.3608,76586.0,76585.0,0.04196665]
[1731192279138,0.64698841,76586.0,76582.0,0.0061]
[1731192279333,0.6217747,76586.0,76582.0,0.0061]
[1731192279533,0.3608,76586.0,76584.0,0.065257]
[1731192281044,0.3608,76586.0,76585.0,0.065257]
[1731192281237,0.38601373,76586.0,76585.0,0.065257]
[1731192282143,0.065258,76585.0,76582.0,0.0061]
[1731192282542,0.22106056,76584.0,76582.0,0.0061]
[1731192282842,0.19584539,76584.0,76582.0,0.0061]
[1731192284140,0.26110439,76584.0,76582.0,0.0061]
[1731192284443,0.065259,76583.0,76582.0,0.0061]
[1731192284943,0.26115946,76583.0,76582.0,0.0061]
[1731192285145,0.065259,76583.0,76582.0,0.0061]
[1731192285748,0.09047478,76583.0,76581.0,0.03910389]
[1731192285944,0.065259,76583.0,76581.0,0.03910389]
[1731192286145,0.3608,76582.0,76581.0,0.03910389]
[1731192286445,0.3608,76582.0,76577.0,0.10594817]
[1731192286649,0.3608,76582.0,76577.0,0.065264]
[1731192288148,0.42606,76582.0,76577.0,0.065264]
[1731192288850,0.3608,76578.0,76577.0,0.065264]
[1731192290844,0.3915,76578.0,76577.0,0.065264]
[1731192294950,0.456763,76578.0,76576.0,0.04071342]
[1731192295151,0.456763,76578.0,76574.0,0.1043343]
[1731192296954,0.456763,76578.0,76575.0,0.0390683]
[1731192297147,0.456763,76578.0,76574.0,0.065266]
[1731192297754,0.456763,76578.0,76574.0,0.10711633]
[1731192299150,0.095963,76578.0,76574.0,0.10711633]
[1731192300354,0.095963,76578.0,76570.0,0.03909012]
[1731192300355,0.14547052,76575.0,76570.0,0.03909012]
[1731192300552,0.065277,76562.0,76556.0,0.11716652]
[1731192300756,0.3608,76571.0,76556.0,0.065282]
[1731192300757,0.3608,76560.0,76556.0,0.065282]
[1731192300958,0.426078,76560.0,76559.0,0.0061]
[1731192301170,0.426078,76560.0,76555.0,0.0061]
[1731192301464,0.065281,76557.0,76555.0,0.0061]
[1731192301764,0.065282,76556.0,76555.0,0.0061]
[1731192302072,0.065282,76556.0,76554.0,0.04392577]
[1731192302073,0.19485651,76556.0,76554.0,0.00195921]
[1731192302270,0.065283,76555.0,76554.0,0.00195921]
[1731192312669,0.08405001,76555.0,76554.0,0.00195921]
[1731192323591,0.065283,76555.0,76554.0,0.00195921]
[1731192325079,0.26249941,76555.0,76554.0,0.00195921]
[1731192327185,0.065285,76552.0,76551.0,0.0061]
[1731192327485,0.3608,76552.0,76547.0,0.0061]
[1731192327687,0.065287,76550.0,76547.0,0.0061]
[1731192327885,0.43353526,76552.0,76547.0,0.0061]
[1731192328088,0.065289,76548.0,76547.0,0.0061]
[1731192328289,0.065289,76547.0,76546.0,0.07320742]
[1731192329894,0.065289,76547.0,76546.0,0.0307]
[1731192332293,0.2611259,76547.0,76546.0,0.0307]
[1731192347810,0.2611259,76547.0,76543.0,0.0061]
[1731192347811,0.1958369,76547.0,76543.0,0.0061]
[1731192347995,0.426092,76544.0,76543.0,0.0061]
[1731192348198,0.065295,76540.0,76539.0,0.0061]
[1731192348506,0.065295,76540.0,76534.0,0.0061]
[1731192349292,0.3608,76537.0,76534.0,0.0061]
[1731192350903,0.3608,76537.0,76534.0,0.0394]
[1731192352101,0.3608,76537.0,76534.0,0.1047]
[1731192352290,0.3608,76537.0,76534.0,0.0394]
[1731192352497,0.3608,76537.0,76536.0,0.07273526]
[1731192354706,0.3608,76537.0,76536.0,0.13803426]
[1731192355794,0.065295,76540.0,76536.0,0.07273526]
[1731192356108,0.065295,76540.0,76537.0,0.065298]
[1731192358098,0.065295,76540.0,76538.0,0.065297]
[1731192358811,0.065295,76540.0,76536.0,0.12489506]
[1731192359011,0.065295,76540.0,76539.0,0.065296]
[1731192363012,0.065294,76542.0,76541.0,0.065294]
[1731192365913,0.0061,76543.0,76542.0,0.065294]
[1731192366115,0.3608,76544.0,76542.0,0.065294]
[1731192368223,0.3608,76544.0,76538.0,0.0061]
[1731192368415,0.3608,76544.0,76538.0,0.071397]
[1731192369323,0.426092,76544.0,76538.0,0.071397]
[1731192370221,0.065293,76543.0,76538.0,0.071397]
[1731192370522,0.3608,76544.0,76538.0,0.071397]
[1731192370716,0.065295,76541.0,76538.0,0.071397]
[1731192370911,0.3608,76544.0,76538.0,0.071397]
[1731192371217,0.0061,76547.0,76541.0,0.07273526]
[1731192371412,0.0061,76547.0,76546.0,0.3608]
[1731192371608,0.0061,76551.0,76546.0,0.3608]
[1731192371812,0.0061,76556.0,76548.0,0.0061]
[1731192372412,0.0061,76556.0,76554.0,0.3608]
[1731192372613,0.0061,76556.0,76555.0,0.0321]
[1731192372817,0.0061,76556.0,76555.0,0.13603526]
[1731192373012,0.0061,76556.0,76555.0,0.0633]
[1731192373221,0.0061,76556.0,76555.0,0.18817176]
[1731192373417,0.0061,76556.0,76555.0,0.52791526]
[1731192373723,0.0061,76556.0,76555.0,0.62035315]
[1731192373914,0.3608,76575.0,76555.0,0.62035315]
[1731192374216,0.3608,76575.0,76562.0,0.43353526]
[1731192374426,0.04211861,76585.0,76573.0,0.07273526]
[1731192374617,0.00161861,76593.0,76584.0,0.3608]
[1731192374821,0.3608,76608.0,76592.0,0.43353526]
[1731192375015,0.04243523,76612.0,76599.0,0.3608]
[1731192375432,0.04243523,76612.0,76599.0,0.46543526]
[1731192375616,0.04243523,76612.0,76599.0,0.3927]
[1731192375820,0.07273526,76621.0,76599.0,0.81948635]
[1731192376014,0.3608,76623.0,76606.0,0.3608]
[1731192376318,0.13022325,76654.0,76619.0,0.3608]
[1731192376319,0.04190198,76650.0,76619.0,0.3608]
[1731192376512,0.3608,76654.0,76635.0,0.3608]
[1731192376711,0.07273526,76643.0,76635.0,0.3608]
[1731192376917,0.3608,76654.0,76635.0,0.3608]
[1731192377314,0.3608,76654.0,76636.0,0.06150498]
[1731192377315,0.07273526,76640.0,76636.0,0.06150498]
[1731192377519,0.095193,76661.0,76636.0,0.06150498]
[1731192377520,0.1967157,76653.0,76639.0,0.07273526]
[1731192377727,0.07273526,76659.0,76652.0,0.3608]
[1731192378020,0.07273526,76654.0,76653.0,0.07072058]
[1731192378223,0.1967157,76663.0,76653.0,0.07072058]
[1731192378427,0.1967157,76671.0,76662.0,0.07273526]
[1731192378616,0.0926,76699.0,76663.0,0.07072058]
[1731192378617,0.07273526,76667.0,76663.0,0.07072058]
[1731192378818,0.07273526,76667.0,76664.0,0.07072058]
[1731192379113,0.07273526,76680.0,76665.0,0.07085641]
[1731192379311,0.11272811,76681.0,76666.0,0.1980413]
[1731192379525,0.1960912,76677.0,76667.0,0.11720656]
[1731192379729,0.1960912,76677.0,76668.0,0.11720656]
[1731192380020,0.11272811,76673.0,76669.0,0.07102587]
[1731192380225,0.3608,76670.0,76669.0,0.07102587]
[1731192380416,0.69499215,76670.0,76669.0,0.09894989]
[1731192380620,0.89102233,76670.0,76669.0,0.12892271]
[1731192381124,0.89102233,76670.0,76644.0,0.17793411]
[1731192381125,0.39128,76669.0,76661.0,0.01052184]
[1731192381425,0.47352811,76662.0,76637.0,0.065212]
[1731192381614,0.3608,76647.0,76637.0,0.065212]
[1731192382116,0.3608,76647.0,76620.0,0.4238]
[1731192382117,0.3608,76647.0,76633.0,0.11272811]
[1731192382315,0.3608,76647.0,76623.0,0.065224]
[1731192382717,0.3608,76647.0,76628.0,0.11272811]
[1731192383127,0.3608,76647.0,76623.0,0.065224]
[1731192383331,0.3608,76647.0,76627.0,0.3608]
[1731192383626,0.3608,76647.0,76641.0,0.11272811]
[1731192383925,0.55765371,76647.0,76641.0,0.11272811]
[1731192384519,0.55765371,76647.0,76635.0,0.065214]
[1731192385229,0.94905371,76647.0,76627.0,0.3608]
[1731192385420,0.94905371,76647.0,76628.0,0.11272811]
[1731192386323,0.55765371,76647.0,76628.0,0.11272811]
[1731192386927,0.55765371,76647.0,76635.0,0.11272811]
[1731192389625,0.55765371,76647.0,76634.0,0.11272811]
[1731192390124,0.55765371,76647.0,76633.0,0.0061]
[1731192390125,0.3608,76635.0,76633.0,0.0061]
[1731192390529,0.58623394,76634.0,76633.0,0.0061]
[1731192391535,0.94703394,76634.0,76633.0,0.0061]
[1731192393118,0.55555394,76634.0,76633.0,0.0061]
[1731192393327,0.94703394,76634.0,76633.0,0.0061]
[1731192400030,0.55555394,76634.0,76633.0,0.0061]
[1731192400230,0.55535672,76634.0,76633.0,0.11882811]
[1731192400437,0.55535672,76634.0,76633.0,0.0061]
[1731192402237,0.55535672,76634.0,76633.0,0.01688354]
[1731192402436,0.55535672,76634.0,76633.0,0.0061]
[1731192404542,0.94683672,76634.0,76633.0,0.0061]
[1731192406634,0.55535672,76634.0,76633.0,0.0061]
[1731192408748,0.94683672,76634.0,76633.0,0.0061]
[1731192410745,1.01205172,76634.0,76633.0,0.0061]
[1731192412940,1.26620093,76634.0,76619.0,0.0019567]
[1731192413254,0.3608,76620.0,76619.0,0.0019567]
[1731192413655,0.57697379,76620.0,76619.0,0.0019567]
[1731192413954,0.55760958,76620.0,76619.0,0.0019567]
[1731192414250,0.57700121,76620.0,76619.0,0.0019567]
[1731192414951,0.55760958,76620.0,76619.0,0.0019567]
[1731192415552,0.3608,76620.0,76619.0,0.0019567]
[1731192416947,0.3608,76627.0,76619.0,0.0019567]
[1731192417355,0.19512262,76626.0,76619.0,0.0019567]
[1731192417843,0.3608,76620.0,76619.0,0.0019567]
[1731192419254,0.36072111,76620.0,76619.0,0.0019567]
[1731192420759,0.36072111,76620.0,76619.0,0.0671847]
[1731192421148,0.36072111,76620.0,76619.0,0.0975847]
[1731192422555,0.36072111,76620.0,76619.0,0.0323567]
[1731192423456,0.36072111,76620.0,76619.0,0.0304]
[1731192424558,0.36072111,76620.0,76619.0,0.06938828]
[1731192425354,0.36072111,76620.0,76619.0,0.0304]
[1731192426949,0.3608,76627.0,76619.0,0.0304]
[1731192427256,0.19587881,76626.0,76619.0,0.0304]
[1731192427456,0.19587881,76626.0,76619.0,0.06938828]
[1731192427757,0.19587881,76626.0,76620.0,0.03898828]
[1731192429163,0.19587881,76626.0,76619.0,0.06938828]
[1731192429363,0.20197881,76626.0,76619.0,0.07548828]
[1731192429559,0.20197881,76626.0,76620.0,0.03898828]
[1731192430267,0.20197881,76626.0,76619.0,0.07548828]
[1731192431153,0.20197881,76626.0,76619.0,0.0365]
[1731192431359,0.0061,76626.0,76625.0,0.11272811]
[1731192431558,0.317,76627.0,76625.0,0.03898828]
[1731192431865,0.317,76627.0,76620.0,0.05280015]
[1731192431866,0.317,76627.0,76626.0,0.03898828]
[1731192432263,0.317,76627.0,76625.0,0.10421128]
[1731192432467,0.317,76627.0,76625.0,0.065223]
[1731192434163,0.3608,76632.0,76625.0,0.065223]
[1731192434572,0.1961486,76631.0,76626.0,0.065222]
[1731192435362,0.1961486,76631.0,76627.0,0.065221]
[1731192437367,0.1961486,76631.0,76622.0,0.03898828]
[1731192437674,0.1961486,76631.0,76629.0,0.065219]
[1731192440190,0.3608,76657.0,76642.0,0.065208]
[1731192440475,0.3608,76657.0,76642.0,0.53873611]
[1731192440680,0.02519314,76656.0,76642.0,0.53873611]
[1731192440870,0.0323,76665.0,76649.0,0.11272811]
[1731192441087,0.02519229,76658.0,76649.0,0.47352811]
[1731192441370,0.02519229,76658.0,76649.0,0.3608]
[1731192441371,0.19454419,76658.0,76649.0,0.3608]
[1731192445765,0.19454419,76658.0,76648.0,0.17793111]
[1731192445966,0.19454419,76658.0,76650.0,0.426002]
[1731192451275,0.19454419,76658.0,76650.0,0.065202]
[1731192451578,0.19454419,76658.0,76651.0,0.0061]
[1731192452080,0.0061,76663.0,76654.0,0.11272811]
[1731192452281,0.0061,76663.0,76651.0,0.0713]
[1731192455073,0.19538368,76662.0,76651.0,0.0713]
[1731192457080,0.22828368,76662.0,76651.0,0.0713]
[1731192457681,0.3608,76652.0,76651.0,0.0061]
[1731192458188,0.5569583,76652.0,76651.0,0.0061]
[1731192459091,0.5569583,76652.0,76651.0,0.11882811]
[1731192459282,0.3608,76652.0,76651.0,0.11882811]
[1731192459692,0.0061,76663.0,76651.0,0.11882811]
[1731192460105,0.19665426,76662.0,76651.0,0.18402811]
[1731192460681,0.3608,76659.0,76651.0,0.18402811]
[1731192460991,0.19582725,76658.0,76651.0,0.18402811]
[1731192461190,0.19582725,76658.0,76653.0,0.065199]
[1731192461490,0.3608,76659.0,76653.0,0.065199]
[1731192463093,0.3608,76659.0,76655.0,0.11272811]
[1731192463598,0.3608,76659.0,76653.0,0.065199]
[1731192463599,0.19513099,76658.0,76653.0,0.065199]
[1731192465488,0.19672178,76659.0,76653.0,0.065199]
[1731192465693,0.3608,76660.0,76653.0,0.065199]
[1731192465891,0.19658355,76658.0,76653.0,0.065199]
[1731192466092,0.3608,76660.0,76651.0,0.0061]
[1731192466093,0.19658355,76659.0,76651.0,0.0061]
[1731192466291,0.3608,76653.0,76651.0,0.0061]
[1731192466491,0.3608,76660.0,76651.0,0.0061]
[1731192467295,0.19588536,76659.0,76651.0,0.0061]
[1731192469295,0.19588536,76659.0,76652.0,0.03898828]
[1731192469485,0.19588536,76659.0,76651.0,0.04508828]
[1731192470192,0.19588536,76659.0,76651.0,0.0061]
[1731192470403,0.19588536,76659.0,76651.0,0.04508828]
[1731192470793,0.19588536,76659.0,76651.0,0.0061]
[1731192471799,0.19588536,76659.0,76652.0,0.03898828]
[1731192473594,0.19588536,76659.0,76651.0,0.0061]
[1731192473595,0.19588536,76659.0,76651.0,0.04508828]
[1731192474399,0.19588536,76659.0,76651.0,0.0061]
[1731192475496,0.0301,76658.0,76651.0,0.0061]
[1731192475904,0.19502005,76657.0,76651.0,0.0061]
[1731192477311,0.19483471,76659.0,76651.0,0.0061]
[1731192477494,0.3608,76660.0,76651.0,0.0061]
[1731192477695,0.3608,76652.0,76651.0,0.0061]
[1731192477996,0.55635486,76652.0,76651.0,0.0061]
[1731192481905,0.55635486,76652.0,76651.0,0.07145]
[1731192485610,0.55635486,76652.0,76651.0,0.11043828]
[1731192486217,0.19555486,76652.0,76651.0,0.11043828]
[1731192486607,0.19555486,76652.0,76651.0,0.17563928]
[1731192488708,0.19555486,76652.0,76651.0,0.136651]
[1731192492712,0.19555486,76652.0,76651.0,0.07145]
[1731192492912,0.26210577,76654.0,76651.0,0.07145]
[1731192493118,0.0327,76653.0,76651.0,0.07145]
[1731192493518,0.19690677,76652.0,76651.0,0.07145]
[1731192495413,0.26210677,76652.0,76651.0,0.07145]
[1731192499725,0.62290677,76652.0,76651.0,0.07145]
[1731192505327,0.55770677,76652.0,76651.0,0.07145]
[1731192506527,0.55770677,76652.0,76651.0,0.0061]
[1731192509024,0.5577505,76652.0,76651.0,0.0061]
[1731192509222,0.61294453,76652.0,76651.0,0.00329965]
[1731192509422,0.6448868,76652.0,76651.0,0.00329965]
[1731192509628,0.61294453,76652.0,76651.0,0.00329965]
[1731192509833,0.60195401,76652.0,76651.0,0.00329965]
[1731192513939,0.601955,76652.0,76651.0,0.00329965]
[1731192514939,0.57675998,76652.0,76651.0,0.00329965]
[1731192516036,0.60195655,76652.0,76651.0,0.00329965]
[1731192516929,0.60195655,76652.0,76651.0,0.00149776]
[1731192518632,0.60195694,76652.0,76651.0,0.00149776]
[1731192519236,0.60195694,76652.0,76651.0,0.00068908]
[1731192520141,0.065211,76640.0,76633.0,0.066]
[1731192520331,0.3608,76638.0,76633.0,0.066]
[1731192521030,0.065215,76635.0,76633.0,0.066]
[1731192522237,0.19553003,76634.0,76633.0,0.066]
[1731192522543,0.065219,76631.0,76627.0,0.10528423]
[1731192522842,0.3608,76628.0,76626.0,0.07437942]
[1731192523142,0.3608,76628.0,76626.0,0.10780354]
[1731192523440,0.426021,76628.0,76626.0,0.03538127]
[1731192524943,0.426021,76628.0,76626.0,0.00195715]
[1731192525147,0.19603911,76627.0,76626.0,0.00195715]
[1731192528646,0.19603911,76627.0,76612.0,0.0333]
[1731192528647,0.26187896,76627.0,76612.0,0.10572227]
[1731192528842,0.26187896,76627.0,76612.0,0.0333]
[1731192528843,0.3608,76613.0,76612.0,0.0333]
[1731192529248,0.3608,76613.0,76610.0,0.0638]
[1731192529450,0.3608,76613.0,76609.0,0.03367981]
[1731192529451,0.55568199,76613.0,76609.0,0.03367981]
[1731192529752,0.065236,76610.0,76607.0,0.07242227]
[1731192530141,0.065237,76609.0,76603.0,0.07242227]
[1731192530345,0.3608,76604.0,76602.0,0.03611623]
[1731192530547,0.426041,76604.0,76602.0,0.00195762]
[1731192531753,0.19501869,76603.0,76602.0,0.00195762]
[1731192532256,0.55581869,76603.0,76602.0,0.00195762]
[1731192537852,0.91661869,76603.0,76602.0,0.00195762]
[1731192539653,0.065243,76602.0,76600.0,0.0061]
[1731192539858,0.07242227,76601.0,76600.0,0.0061]
[1731192540060,0.26869072,76601.0,76600.0,0.0061]
[1731192545160,0.99029072,76601.0,76600.0,0.0061]
[1731192547254,0.065245,76599.0,76580.0,0.0328]
[1731192547457,0.3608,76581.0,76580.0,0.06578441]
[1731192547671,0.3608,76581.0,76580.0,0.0328]
[1731192549962,0.49848227,76581.0,76580.0,0.0328]
[1731192552065,0.065262,76579.0,76578.0,0.0317]
[1731192552261,0.065266,76575.0,76571.0,0.0325]
[1731192552459,0.3608,76572.0,76571.0,0.0325]
[1731192558869,0.3608,76572.0,76569.0,0.04095363]
[1731192559069,0.07242227,76571.0,76569.0,0.04095363]
[1731192559270,0.07242227,76571.0,76570.0,0.0389947]
[1731192559967,0.07242227,76571.0,76569.0,0.00195893]
[1731192560171,0.13769227,76571.0,76570.0,0.01028177]
[1731192560373,0.13769227,76571.0,76569.0,0.00195893]
[1731192561971,0.3608,76570.0,76569.0,0.00195893]
[1731192562778,0.5568464,76570.0,76563.0,0.0389947]
[1731192563072,0.5568464,76570.0,76561.0,0.0061]
[1731192563073,0.065277,76562.0,76561.0,0.0061]
[1731192563377,0.065277,76562.0,76549.0,0.06499117]
[1731192563378,0.13770127,76559.0,76556.0,0.0450947]
[1731192563669,0.13770127,76559.0,76555.0,0.1042747]
[1731192563670,0.3608,76557.0,76555.0,0.1042747]
[1731192563870,0.07242227,76556.0,76555.0,0.1042747]
[1731192564077,0.427001,76557.0,76555.0,0.1042747]
[1731192564265,0.427001,76557.0,76555.0,0.06528]
[1731192564266,0.49850327,76557.0,76555.0,0.06528]
[1731192564466,0.49850327,76557.0,76556.0,0.03899951]
[1731192565369,0.49850327,76557.0,76555.0,0.13720644]
[1731192565570,0.49850327,76557.0,76556.0,0.03899951]
[1731192565980,0.49850327,76557.0,76555.0,0.03899951]
[1731192566978,0.49850327,76557.0,76552.0,0.05199293]
[1731192567177,0.07242227,76553.0,76551.0,0.05199293]
[1731192567473,0.3669,76554.0,76552.0,0.03899205]
[1731192567674,0.432184,76554.0,76551.0,0.03899205]
[1731192567865,0.432184,76554.0,76549.0,0.03899205]
[1731192568064,0.432184,76554.0,76548.0,0.03899205]
[1731192568065,0.07242227,76550.0,76548.0,0.03899205]
[1731192568974,0.07242227,76550.0,76549.0,0.03899205]
[1731192569277,0.07852227,76550.0,76545.0,0.05199293]
[1731192569473,0.07852227,76550.0,76546.0,0.05199293]
[1731192570271,0.3608,76547.0,76545.0,0.05199293]
[1731192571271,0.3608,76547.0,76544.0,0.14914307]
[1731192571680,0.3608,76547.0,76545.0,0.05199293]
[1731192572377,0.07242227,76546.0,76545.0,0.05199293]
[1731192573299,0.07242227,76546.0,76544.0,0.08564307]
[1731192573497,0.07242227,76546.0,76544.0,0.05199293]
[1731192574892,0.07242227,76546.0,76545.0,0.05199293]
[1731192575092,0.07852227,76546.0,76545.0,0.05199293]
[1731192575787,0.07852227,76546.0,76544.0,0.03302713]
[1731192575988,0.07852227,76546.0,76542.0,0.05199293]
[1731192576201,0.07852227,76546.0,76545.0,0.03899799]
[1731192576699,0.07852227,76546.0,76541.0,0.05199293]
[1731192577296,0.07852227,76546.0,76545.0,0.03900386]
[1731192577902,0.07852227,76546.0,76541.0,0.05199293]
[1731192578201,0.07852227,76546.0,76540.0,0.05199293]
[1731192578403,0.07852227,76546.0,76541.0,0.05199293]
[1731192578993,0.07852227,76546.0,76542.0,0.05199293]
[1731192579199,0.07852227,76546.0,76541.0,0.05199293]
[1731192579392,0.07852227,76546.0,76542.0,0.05199293]
[1731192579793,0.3608,76544.0,76542.0,0.05199293]
[1731192580299,0.3608,76544.0,76541.0,0.05199293]
[1731192580497,0.3608,76544.0,76542.0,0.05199293]
[1731192580698,0.3608,76544.0,76540.0,0.05199293]
[1731192581303,0.3608,76544.0,76539.0,0.05199293]
[1731192581504,0.3608,76544.0,76540.0,0.05199293]
[1731192581901,0.3608,76544.0,76543.0,0.03903017]
[1731192582412,0.3608,76544.0,76542.0,0.03903017]
[1731192582597,0.3608,76544.0,76543.0,0.03903017]
[1731192582798,0.43322227,76544.0,76543.0,0.03903017]
[1731192583199,0.43322227,76544.0,76542.0,0.03903017]
[1731192583601,0.43322227,76544.0,76543.0,0.03903017]
[1731192583797,0.43322227,76544.0,76541.0,0.03903017]
[1731192584415,0.43322227,76544.0,76540.0,0.03903017]
[1731192584609,0.43322227,76544.0,76541.0,0.03903017]
[1731192585005,0.43322227,76544.0,76542.0,0.03903017]
[1731192585309,0.43322227,76544.0,76541.0,0.03903017]
[1731192585505,0.43322227,76544.0,76542.0,0.03903017]
[1731192586304,0.43322227,76544.0,76541.0,0.03903017]
[1731192586497,0.43322227,76544.0,76542.0,0.03903017]
[1731192587202,0.43322227,76544.0,76541.0,0.03903017]
[1731192587605,0.43322227,76544.0,76540.0,0.03903017]
[1731192587813,0.43322227,76544.0,76538.0,0.0061]
[1731192587814,0.3608,76544.0,76539.0,0.03903017]
[1731192588007,0.07242227,76543.0,76540.0,0.03903017]
[1731192588410,0.07242227,76543.0,76541.0,0.03903017]
[1731192588599,0.07242227,76543.0,76540.0,0.03903017]
[1731192589005,0.07242227,76543.0,76538.0,0.0061]
[1731192589006,0.07242227,76543.0,76539.0,0.03903017]
[1731192589505,0.07242227,76543.0,76540.0,0.03903017]
[1731192589912,0.07242227,76543.0,76542.0,0.03903017]
[1731192590509,0.07242227,76543.0,76539.0,0.05199293]
[1731192590704,0.13771527,76543.0,76539.0,0.05199293]
[1731192591311,0.13771527,76543.0,76538.0,0.0061]
[1731192591312,0.13771527,76543.0,76538.0,0.05809293]
[1731192591512,0.13771527,76543.0,76540.0,0.05199293]
[1731192592217,0.13771527,76543.0,76539.0,0.05199293]
[1731192592412,0.13771527,76543.0,76540.0,0.05199293]
[1731192593513,0.13771527,76543.0,76541.0,0.05199293]
[1731192593816,0.13771527,76543.0,76540.0,0.05199293]
[1731192597018,0.13771527,76543.0,76542.0,0.03912143]
[1731192598618,0.13771527,76543.0,76542.0,0.03912173]
[1731192599017,0.13771527,76543.0,76542.0,0.03912177]
[1731192599324,0.13771527,76543.0,76542.0,0.03912332]
[1731192599529,0.13771527,76543.0,76541.0,0.03912332]
[1731192599820,0.065294,76542.0,76540.0,0.03912332]
[1731192600518,0.065294,76542.0,76541.0,0.10432332]
[1731192600720,0.071394,76542.0,76541.0,0.10432332]
[1731192600912,0.071394,76542.0,76541.0,0.07192332]
[1731192601116,0.071394,76542.0,76541.0,0.03912332]
[1731192601318,0.26833985,76542.0,76541.0,0.03912332]
[1731192601526,0.065295,76541.0,76539.0,0.03912332]
[1731192601927,0.065296,76539.0,76538.0,0.03912332]
[1731192602119,0.065296,76539.0,76534.0,0.05809293]
[1731192602320,0.3608,76535.0,76534.0,0.09219856]
[1731192602520,0.3608,76535.0,76534.0,0.03410563]
[1731192602716,0.3608,76535.0,76533.0,0.05395275]
[1731192603226,0.3608,76535.0,76533.0,0.08728089]
[1731192604129,0.3608,76535.0,76533.0,0.03528796]
[1731192604924,0.4261,76535.0,76533.0,0.00195982]
[1731192605737,0.4261,76535.0,76534.0,0.05217561]
[1731192606930,0.62302648,76535.0,76534.0,0.05217561]
[1731192607121,0.065301,76534.0,76533.0,0.05413543]
[1731192607532,0.065301,76534.0,76533.0,0.02413543]
[1731192608138,0.065301,76534.0,76531.0,0.03427703]
[1731192608434,0.065301,76534.0,76529.0,0.0061]
[1731192609227,0.065302,76533.0,76529.0,0.0061]
[1731192609433,0.065302,76533.0,76529.0,0.03890902]
[1731192609734,0.065302,76533.0,76529.0,0.0061]
[1731192610930,0.065302,76532.0,76529.0,0.0061]
[1731192611130,0.065302,76532.0,76528.0,0.03329836]
[1731192611323,0.065303,76531.0,76525.0,0.16870227]
[1731192612828,0.3608,76530.0,76525.0,0.16870227]
[1731192613431,0.3608,76530.0,76525.0,0.17064096]
[1731192613626,0.426104,76530.0,76525.0,0.17064096]
[1731192613823,0.07242227,76528.0,76524.0,0.06528]